bitfinex/quotes_ETHUSD_20250827
["timestamp","ask_amount","ask_price","bid_price","bid_amount"]
[1756301867278,1e-08,4602.8,4602.7,10.85850549]
[1756301867676,1e-08,4602.8,4602.7,6.85750549]
[1756301868002,1e-08,4602.8,4602.7,10.96730549]
[1756301868704,1e-08,4602.8,4602.7,10.96630549]
[1756301870584,1e-08,4604.3,4604.2,2.83192997]
[1756301870781,0.02,4604.8,4604.7,2.83169413]
[1756301870782,1e-08,4604.8,4604.7,2.83169413]
[1756301871093,1e-08,4604.8,4604.7,9.84841107]
[1756301871294,1e-08,4604.8,4604.7,10.40689413]
[1756301871486,1e-08,4604.8,4604.7,5.94049413]
[1756301871706,1e-08,4604.8,4604.7,10.74572025]
[1756301872311,1e-08,4604.8,4604.7,12.88912025]
[1756301873014,1e-08,4604.8,4604.7,8.89512025]
[1756301873192,1e-08,4604.8,4604.7,12.88612025]
[1756301874218,1e-08,4604.8,4604.7,12.88112025]
[1756301875518,0.002,4605.3,4604.7,12.88112025]
[1756301875519,1e-08,4605.3,4604.7,12.88112025]
[1756301875694,0.002,4606.3,4605.7,5.83122261]
[1756301875898,0.002,4606.3,4605.7,9.81222261]
[1756301876216,0.002,4606.3,4606.0,2.17108119]
[1756301876417,1e-08,4606.6,4606.5,5.17084554]
[1756301876601,1e-08,4606.6,4606.5,9.81084554]
[1756301876818,1e-08,4606.6,4606.5,9.91964554]
[1756301876992,0.002,4607.7,4607.5,0.66]
[1756301877304,0.002,4607.7,4607.6,2.83032728]
[1756301878088,0.002,4607.7,4607.6,2.17032728]
[1756301878291,0.002,4607.7,4607.6,0.02170327]
[1756301878619,0.002,4607.7,4607.6,2.83032728]
[1756301878789,0.002,4607.7,4607.6,2.17032728]
[1756301879218,0.4523,4607.7,4607.1,0.1088]
[1756301879419,0.4523,4607.7,4607.6,2.17032728]
[1756301880080,2.1233,4607.7,4606.6,0.1088]
[1756301880279,2.1233,4607.7,4606.7,0.02170751]
[1756301880519,2.1233,4607.7,4606.8,2.27949805]
[1756301880820,2.62064961,4607.6,4606.4,2.17085286]
[1756301881020,2.62064961,4607.6,4606.6,2.17076137]
[1756301881021,0.4503,4607.5,4606.6,2.17076137]
[1756301881220,3.0,4607.3,4606.3,2.17093814]
[1756301881428,0.4503,4607.2,4605.9,2.17112833]
[1756301881717,2.17067976,4606.9,4606.0,2.17107827]
[1756301881885,2.1203,4606.8,4602.6,0.4714]
[1756301882185,3.994,4606.7,4602.7,6.33879237]
[1756301882384,3.994,4606.7,4603.0,2.17249619]
[1756301882385,4.4433,4606.6,4603.0,2.17249619]
[1756301882615,2.17103407,4606.1,4604.8,0.02]
[1756301882825,3.4503,4606.5,4604.8,0.02]
[1756301883149,3.993,4606.6,4604.8,0.02]
[1756301883150,0.4503,4606.7,4605.0,3.0]
[1756301883457,3.0,4607.4,4605.2,0.66]
[1756301883613,0.4503,4606.6,4605.6,2.17125704]
[1756301883810,2.1203,4606.5,4605.2,0.66]
[1756301884031,0.4503,4606.5,4605.4,0.66]
[1756301884310,0.33982181,4606.9,4606.3,2.17090743]
[1756301884518,0.33982181,4606.9,4606.7,0.66]
[1756301884729,0.33982181,4606.9,4606.8,2.85241121]
[1756301885332,0.0012,4607.7,4607.6,2.17032728]
[1756301885544,0.0012,4607.7,4607.6,2.83032728]
[1756301885731,0.7911928,4607.7,4606.6,3.991]
[1756301885934,0.7911928,4607.7,4607.6,2.17032728]
[1756301885935,0.3408928,4607.7,4607.6,2.17032728]
[1756301886148,0.7911928,4607.7,4607.3,2.17043269]
[1756301886446,0.3408928,4607.7,4607.5,2.17037438]
[1756301886650,0.3408928,4607.7,4607.6,2.17032728]
[1756301887243,0.0012,4607.7,4607.6,2.83032728]
[1756301887447,0.0012,4607.7,4607.6,3.35210072]
[1756301887622,0.0012,4607.7,4607.6,3.33039745]
[1756301888125,0.0012,4607.7,4607.6,2.17032728]
[1756301888678,1e-08,4608.8,4608.7,5.82980927]
[1756301888973,1e-08,4609.8,4609.7,5.82933856]
[1756301889263,1e-08,4609.8,4609.7,6.82920388]
[1756301889482,1e-08,4609.8,4609.7,7.46338545]
[1756301890550,1e-08,4609.8,4609.7,6.79199548]
[1756301890722,1e-08,4609.8,4609.7,6.99182545]
[1756301891358,1e-08,4609.8,4609.7,7.46322545]
[1756301891645,1e-08,4609.8,4609.7,7.46349221]
[1756301892054,1e-08,4609.8,4609.7,5.27813856]
[1756301892550,1e-08,4609.8,4609.7,5.16933856]
[1756301892939,0.45030001,4609.8,4608.3,1.83262953]
[1756301893247,0.002,4608.7,4608.6,9.31165635]
[1756301893447,1e-08,4609.8,4609.7,2.16933856]
[1756301893815,1e-08,4609.8,4609.7,2.82933856]
[1756301894219,0.45030001,4609.8,4609.3,0.1088]
[1756301894552,2.11930001,4609.8,4608.7,2.16980402]
[1756301894861,5.16945561,4609.5,4608.0,2.17013252]
[1756301895151,2.16958728,4609.2,4607.6,0.001]
[1756301895335,3.0,4609.0,4607.6,0.001]
[1756301895539,2.17028018,4607.7,4607.6,0.001]
[1756301895756,2.17018598,4607.9,4607.8,0.02]
[1756301895959,11.33448598,4607.9,4607.8,0.02]
[1756301897367,7.28948598,4607.9,4607.8,0.02]
[1756301897541,11.33548598,4607.9,4607.8,0.02]
[1756301897868,5.1193,4607.9,4607.8,0.02]
[1756301898040,9.1623,4607.9,4607.8,0.02]
[1756301898236,11.33248598,4607.9,4607.8,0.02]
[1756301898436,7.28948598,4607.9,4607.8,0.02]
[1756301898637,11.67122585,4607.9,4607.8,0.02]
[1756301898978,2.00873987,4607.9,4607.8,0.02]
[1756301899469,1.669,4608.9,4607.8,0.02]
[1756301899655,1.669,4608.9,4608.0,2.17013888]
[1756301899656,0.33968916,4608.9,4608.0,2.17013888]
[1756301899980,0.33968916,4608.9,4608.0,2.17012619]
[1756301900284,4.37968916,4608.9,4607.8,0.02]
[1756301900493,3.4522,4608.8,4607.8,0.02]
[1756301900637,3.0,4608.7,4607.8,0.02]
[1756301900967,2.17018598,4607.9,4607.8,0.02]
[1756301901171,3.83918598,4607.9,4607.8,0.02]
[1756301901388,8.32938598,4607.9,4607.8,0.02]
[1756301901554,6.1592,4607.9,4607.8,0.02]
[1756301901756,8.32938598,4607.9,4607.8,0.02]
[1756301902060,11.32938598,4607.9,4607.8,0.02]
[1756301902244,2.17044149,4607.4,4607.1,0.001]
[1756301902445,3.0,4607.5,4605.5,0.20160121]
[1756301902634,3.4522,4607.3,4604.9,0.20159612]
[1756301902834,2.17105434,4606.1,4604.8,0.02]
[1756301903075,5.17112833,4605.9,4604.8,0.02]
[1756301903260,2.17159981,4604.9,4604.8,0.02]
[1756301903462,7.87959981,4604.9,4604.8,0.02]
[1756301903771,1.669,4605.3,4604.8,0.02]
[1756301903978,1.67,4605.7,4604.8,0.02]
[1756301904150,4.039,4605.7,4605.1,2.17146471]
[1756301904341,1.67,4605.9,4605.1,2.17146471]
[1756301904342,1.67,4605.9,4605.2,2.1714517]
[1756301904547,4.039,4605.8,4605.2,2.1714517]
[1756301904773,4.039,4605.8,4605.1,2.17150296]
[1756301905075,2.17126975,4605.6,4604.8,0.02]
[1756301905280,4.04,4605.5,4604.8,0.02]
[1756301905796,4.04,4605.8,4604.8,0.23917884]
[1756301906085,4.04,4605.8,4604.8,0.68]
[1756301906796,4.04,4605.7,4605.0,0.66]
[1756301907090,4.04,4605.7,4604.8,0.02]
[1756301907091,4.04,4605.7,4604.8,0.68]
[1756301907797,4.04,4605.7,4604.9,2.17159981]
[1756301907972,4.04,4605.7,4605.0,2.17152673]
[1756301908764,0.4522,4605.6,4604.8,0.02]
[1756301909260,2.1713169,4605.5,4604.8,0.02]
[1756301909482,3.4522,4605.6,4604.8,0.02]
[1756301909981,3.79213561,4605.6,4604.8,0.02]
[1756301910180,2.17147627,4605.2,4604.8,0.02]
[1756301910381,4.03,4605.1,4604.8,0.02]
[1756301910581,2.17159981,4604.9,4604.8,0.02]
[1756301910964,5.62379981,4604.9,4604.8,0.02]
[1756301911147,5.963773,4604.9,4604.8,0.02]
[1756301911963,9.990773,4604.9,4604.8,0.02]
[1756301912167,4.36497319,4604.9,4604.8,0.02]
[1756301912367,0.33997319,4604.9,4604.8,0.02]
[1756301912687,4.36397319,4604.9,4604.8,0.02]
[1756301913198,0.33997319,4604.9,4604.8,0.02]
[1756301913354,1.67,4605.0,4604.8,2.19164697]
[1756301913687,1.67,4605.0,4604.9,2.17159981]
[1756301913985,2.1222,4605.0,4604.8,0.02]
[1756301914189,2.62379981,4604.9,4604.8,0.02]
[1756301914404,9.59999981,4604.9,4604.8,0.02]
[1756301915090,13.16779981,4604.9,4604.8,0.02]
[1756301915291,6.9762,4604.9,4604.8,0.02]
[1756301915496,13.16779981,4604.9,4604.8,0.02]
[1756301915788,13.95996023,4604.9,4604.8,0.02]
[1756301915995,7.31616042,4604.9,4604.8,0.02]
[1756301916167,0.33996042,4604.9,4604.8,0.02]
[1756301916495,4.017,4605.0,4604.9,2.17159981]
[1756301916793,1.67,4605.5,4605.3,2.17139141]
[1756301917091,4.016,4605.4,4604.8,0.02]
[1756301917397,1.67,4605.5,4604.8,0.02]
[1756301917398,1.67,4605.5,4605.1,2.1715055]
[1756301917601,1.67,4606.2,4605.8,2.1711488]
[1756301917803,4.014,4606.1,4605.8,2.1711488]
[1756301918002,4.014,4606.1,4606.0,2.17108119]
[1756301918213,4.014,4606.1,4605.9,2.1711275]
[1756301918423,4.014,4606.1,4605.6,2.17126229]
[1756301918581,4.014,4606.1,4605.2,0.69736513]
[1756301918787,1.67,4606.2,4606.0,2.17108119]
[1756301918976,1.67,4606.2,4605.8,2.17114363]
[1756301918977,4.011,4606.1,4605.8,2.17114363]
[1756301919338,0.4522,4606.0,4605.2,0.1088]
[1756301919606,0.4522,4606.0,4602.8,0.02]
[1756301919607,3.66,4605.8,4602.8,0.02]
[1756301919772,3.0,4603.8,4599.7,0.4585]
[1756301919977,2.17173763,4604.7,4599.7,0.4585]
[1756301919978,2.17301549,4601.9,4599.8,0.02]
[1756301920200,2.17348779,4600.9,4599.8,0.02]
[1756301920387,10.90248779,4600.9,4599.8,0.02]
[1756301920717,2.19358228,4600.7,4599.8,1e-08]
[1756301921012,2.19358228,4600.7,4597.3,0.001]
[1756301921013,2.17490593,4597.9,4597.3,0.001]
[1756301921187,16.68551308,4597.9,4597.3,0.001]
[1756301921387,16.60310593,4597.9,4597.3,0.001]
[1756301921618,2.17514247,4597.4,4597.3,0.001]
[1756301921820,2.17537905,4596.9,4596.8,0.021]
[1756301922022,6.84637905,4596.9,4596.8,0.021]
[1756301922202,9.2352,4596.9,4596.8,0.021]
[1756301922514,5.1232,4596.9,4596.8,0.021]
[1756301923034,8.793,4596.9,4596.8,0.021]
[1756301923236,4.671,4596.9,4596.8,0.021]
[1756301923521,9.58579482,4596.9,4596.8,0.021]
[1756301923929,9.58679482,4596.9,4596.8,0.021]
[1756301924100,9.13459482,4596.9,4596.8,0.021]
[1756301924444,11.76217387,4596.9,4596.8,0.021]
[1756301924579,5.46379482,4596.9,4596.8,0.021]
[1756301924780,9.78345691,4596.9,4596.8,0.021]
[1756301925191,8.99166209,4596.9,4596.8,0.021]
[1756301925603,9.44386209,4596.9,4596.8,0.021]
[1756301926019,9.43986209,4596.9,4596.8,0.021]
[1756301926232,4.86966209,4596.9,4596.8,0.021]
[1756301926434,8.98766209,4596.9,4596.8,0.021]
[1756301926733,1.671,4596.9,4596.8,0.021]
[1756301926904,5.792,4596.9,4596.8,0.021]
[1756301927535,5.222,4597.9,4596.8,0.4795]
[1756301927834,1.672,4597.8,4596.9,0.68175379]
[1756301928045,4.118,4597.7,4597.6,2.17504785]
[1756301928274,0.11362107,4600.1,4597.6,2.17504785]
[1756301928275,0.4522,4600.0,4597.7,2.83500054]
[1756301928549,1.86972957,4599.9,4598.2,2.17474961]
[1756301928760,7.40082989,4600.2,4597.8,0.4585]
[1756301928761,5.791,4599.8,4597.9,0.66]
[1756301928922,5.791,4599.8,4597.8,0.4585]
[1756301929124,5.791,4599.8,4598.2,2.17471744]
[1756301929468,0.19772664,4599.7,4599.1,2.17433577]
[1756301929621,0.19772664,4599.7,4598.3,0.4585]
[1756301929622,0.1088,4598.7,4598.4,0.66]
[1756301929827,0.1088,4598.7,4598.6,2.17457487]
[1756301930133,0.108,4598.7,4598.6,2.17457487]
[1756301930337,0.19774196,4599.7,4598.8,0.66]
[1756301930551,0.1088,4599.1,4598.8,0.66]
[1756301930858,4.2218,4599.1,4599.0,2.17438573]
[1756301931222,2.01234614,4600.7,4599.1,0.66]
[1756301931456,5.228,4601.8,4600.1,0.66]
[1756301931457,0.1088,4600.5,4600.1,0.66]
[1756301931671,0.1088,4600.5,4600.4,2.17372402]
[1756301931836,0.1088,4600.5,4600.4,0.4656]
[1756301932021,4.132,4600.8,4600.4,2.17367772]
[1756301932217,0.02,4600.8,4600.7,2.17358228]
[1756301932423,4.13,4600.8,4600.7,2.63918228]
[1756301932732,0.02,4600.8,4600.7,3.29918228]
[1756301933357,4.128,4600.8,4598.6,1.672]
[1756301933557,4.128,4600.8,4599.7,2.17405482]
[1756301933758,4.128,4600.8,4600.7,2.17358228]
[1756301934170,0.02,4600.8,4600.7,3.29918228]
[1756301934830,0.02,4600.8,4600.7,3.3209181]
[1756301935058,0.02,4600.8,4600.7,3.29918228]
[1756301935260,0.02,4600.8,4600.7,3.84646666]
[1756301935960,3.331,4601.7,4601.6,2.17315716]
[1756301936161,3.331,4601.7,4601.5,2.17318773]
[1756301936358,3.331,4601.7,4600.8,0.66]
[1756301936564,3.331,4601.7,4601.6,2.17315716]
[1756301936766,1.672,4602.1,4602.0,2.17296827]
[1756301937137,4.097,4602.2,4602.1,2.17292105]
[1756301937645,4.097,4602.2,4601.9,2.17299433]
[1756301937838,4.097,4602.2,4600.7,3.0]
[1756301938043,4.097,4602.2,4600.8,0.66]
[1756301938275,4.097,4602.2,4601.0,0.66]
[1756301938564,4.093,4602.1,4602.0,2.17296827]
[1756301938727,1.712,4602.8,4602.4,2.1727434]
[1756301938932,4.091,4602.7,4601.8,0.66]
[1756301939160,4.091,4602.7,4602.4,2.17274147]
[1756301939465,4.091,4602.6,4601.8,2.83306271]
[1756301939685,4.091,4602.6,4601.2,0.66]
[1756301939863,4.091,4602.6,4601.4,2.83325161]
[1756301940188,4.5415,4602.6,4600.4,3.0]
[1756301940353,4.5415,4602.6,4600.7,2.17357803]
[1756301940555,1.712,4602.8,4600.8,0.02173535]
[1756301940756,4.087,4602.5,4602.4,2.17277941]
[1756301940978,4.087,4602.5,4601.6,0.66]
[1756301941178,4.087,4602.5,4602.4,2.17277941]
[1756301941778,3.0,4602.4,4600.1,0.4656]
[1756301942092,0.1088,4600.9,4600.8,2.17353503]
[1756301942886,0.5593,4600.9,4599.4,2.17419663]
[1756301943095,0.1088,4600.6,4599.5,3.4656]
[1756301943314,4.084,4600.9,4599.5,2.17414936]
[1756301943457,0.1088,4600.3,4600.2,2.17381852]
[1756301943655,0.1088,4600.3,4600.2,2.63941852]
[1756301943857,4.086,4601.0,4600.9,2.17348779]
[1756301944090,4.1948,4601.0,4600.9,2.17348779]
[1756301945803,4.1948,4601.0,4600.8,0.02]
[1756301946101,3.4505,4600.9,4600.8,0.02]
[1756301946688,7.6463,4600.9,4600.8,0.02]
[1756301947092,7.6483,4600.9,4600.8,0.02]
[1756301947297,7.6463,4600.9,4600.8,0.02]
[1756301947698,7.6463,4600.9,4600.1,2.17386498]
[1756301948000,0.1088,4600.2,4599.5,2.17414359]
[1756301948218,5.754,4600.1,4599.9,2.1739156]
[1756301948508,4.081,4600.0,4599.9,2.1739156]
[1756301948668,4.1898,4600.0,4599.9,2.1739156]
[1756301949064,4.6403,4600.0,4599.8,0.02]
[1756301949268,4.6403,4600.0,4599.8,2.19399737]
[1756301949506,4.1898,4600.0,4599.9,2.1739603]
[1756301949713,4.6403,4600.0,4599.8,0.02]
[1756301949877,3.65063908,4599.9,4599.8,0.02]
[1756301950080,5.82459938,4599.9,4599.8,0.02]
[1756301950510,6.16495295,4599.9,4599.8,0.02]
[1756301950723,3.99099265,4599.9,4599.8,0.02]
[1756301951088,3.99099265,4599.9,4598.8,0.02]
[1756301951089,4.65099265,4599.9,4598.8,0.02]
[1756301951281,0.66,4599.6,4598.8,0.02]
[1756301951498,0.20013908,4599.5,4598.8,0.02]
[1756301951813,2.63713908,4599.4,4598.8,0.02]
[1756301952016,2.437,4599.4,4598.8,0.02]
[1756301952230,8.05187801,4599.3,4598.8,0.02]
[1756301952522,2.17443301,4598.9,4598.8,0.02]
[1756301952686,0.20013671,4598.9,4598.8,0.02]
[1756301952872,4.73063671,4598.9,4598.8,0.02]
[1756301953075,6.90506972,4598.9,4598.8,0.02]
[1756301953633,2.17467202,4598.4,4597.8,0.02]
[1756301953775,2.17476403,4598.2,4597.8,0.02]
[1756301953974,0.20013671,4598.1,4597.8,0.02]
[1756301954175,0.20013671,4598.0,4597.8,0.02]
[1756301954403,4.27713671,4597.9,4597.8,0.02]
[1756301954610,4.27633671,4597.9,4597.8,0.02]
[1756301954810,4.077,4597.9,4597.8,0.02]
[1756301954979,4.5275,4597.9,4597.8,0.02]
[1756301955305,4.077,4597.9,4597.8,0.02]
[1756301955491,4.074,4597.9,4597.8,0.02]
[1756301955905,4.5245,4597.9,4597.8,0.02]
[1756301956085,7.5245,4597.9,4597.8,0.02]
[1756301956293,9.69940593,4597.9,4597.8,0.02]
[1756301956620,3.0,4597.8,4596.8,0.021]
[1756301956928,3.0,4597.6,4597.0,2.17532455]
[1756301957128,3.0,4597.6,4596.8,0.021]
[1756301957281,2.1225,4598.3,4597.5,2.17509296]
[1756301957484,4.07,4598.2,4597.6,2.17500286]
[1756301957807,4.069,4598.1,4597.3,0.4656]
[1756301958015,1.672,4598.3,4598.2,2.17476403]
[1756301958196,1.672,4598.3,4598.2,2.64036403]
[1756301958521,4.069,4598.8,4598.7,2.17452758]
[1756301958720,1.673,4599.4,4599.1,2.17431502]
[1756301958888,1.673,4599.5,4599.4,2.17419663]
[1756301959084,1.673,4599.6,4599.5,2.17414316]
[1756301959309,2.01339744,4600.3,4600.2,2.17381852]
[1756301959615,5.745,4600.3,4600.2,2.17381852]
[1756301960384,6.1883,4600.3,4599.7,2.17405075]
[1756301960626,6.1883,4600.3,4598.8,2.17448029]
[1756301960781,6.1883,4600.3,4599.6,2.17406733]
[1756301961124,0.02,4598.8,4598.7,2.17452758]
[1756301961714,0.02,4598.8,4598.7,3.27132758]
[1756301961880,0.02,4598.8,4598.7,3.82680045]
[1756301962083,0.02,4598.8,4598.7,2.61132758]
[1756301962285,0.1288,4598.8,4598.7,2.17452758]
[1756301963219,0.1288,4598.8,4598.7,3.29307285]
[1756301963517,0.1288,4598.8,4598.7,3.27132758]
[1756301963684,0.02,4598.8,4598.7,2.17452758]
[1756301963886,0.02,4598.8,4598.7,3.27132758]
[1756301964123,0.1288,4598.8,4598.7,2.61132758]
[1756301964306,0.1288,4598.8,4598.7,3.27132758]
[1756301964792,0.1288,4598.8,4598.7,2.17452758]
[1756301965221,0.1288,4598.8,4598.7,2.61132758]
[1756301965709,1e-08,4598.8,4598.7,3.74992045]
[1756301966301,1e-08,4598.8,4598.7,6.77166572]
[1756301966528,1.675,4601.4,4600.8,2.17353503]
[1756301966703,0.002,4601.4,4600.8,2.17353503]
[1756301966906,0.002,4601.4,4600.8,3.27033503]
[1756301967528,0.002,4601.4,4600.8,2.17353503]
[1756301968422,0.002,4601.4,4601.2,0.66]
[1756301968595,0.002,4601.4,4601.3,2.83329885]
[1756301968803,0.002,4601.4,4601.3,2.94209885]
[1756301968996,0.002,4601.4,4601.3,2.17329885]
[1756301969399,0.002,4601.4,4601.3,2.60796568]
[1756301970001,0.002,4601.4,4601.3,3.70476568]
[1756301970203,1e-08,4601.4,4601.3,7.78249866]
[1756301970404,1e-08,4601.4,4601.3,7.86956568]
[1756301970720,1e-08,4601.4,4601.3,7.87056568]
[1756301970925,0.3401034,4603.1,4602.7,2.17263779]
[1756301971126,0.3401034,4603.1,4603.0,2.83249619]
[1756301971127,1e-08,4603.1,4603.0,2.83249619]
[1756301971429,0.02,4604.8,4603.0,2.83249619]
[1756301971430,0.02,4604.8,4604.7,2.17169413]
[1756301971626,0.02,4604.8,4603.8,0.7688]
[1756301971831,0.02,4604.8,4604.7,2.17169413]
[1756301972131,0.002,4605.7,4605.4,2.17134692]
[1756301972333,0.02,4606.8,4605.6,5.17126975]
[1756301972494,0.02,4606.8,4606.1,5.83103406]
[1756301972690,0.02,4606.8,4606.1,5.93983406]
[1756301972943,0.02,4606.8,4606.1,2.93983406]
[1756301973234,0.02,4606.8,4606.1,2.17103406]
[1756301973736,0.02,4606.8,4606.1,2.8527444]
[1756301974077,0.02,4607.8,4606.6,0.66]
[1756301974334,0.02,4607.8,4607.7,0.66]
[1756301974489,0.02,4607.8,4606.7,2.13050751]
[1756301974490,0.02,4607.8,4606.7,1.672]
[1756301974690,0.02,4607.8,4606.7,2.17072201]
[1756301974892,2.1353,4607.8,4606.0,0.66]
[1756301975097,2.1353,4607.8,4606.1,2.17098886]
[1756301975296,0.02,4607.8,4606.2,6.47177889]
[1756301975492,0.02,4607.8,4606.4,0.66]
[1756301975735,0.02,4607.8,4607.6,2.1702886]
[1756301975943,0.02,4607.8,4606.8,0.7688]
[1756301976096,0.4433,4607.7,4606.1,0.1088]
[1756301976296,0.4433,4607.7,4605.9,2.17112833]
[1756301976297,3.0,4607.5,4605.9,2.17112833]
[1756301976497,1.691,4607.8,4606.0,0.5456]
[1756301976730,1.691,4607.8,4607.3,2.17046718]
[1756301976896,1.691,4607.8,4606.6,0.66]
[1756301977299,1.691,4607.8,4606.8,0.66]
[1756301977800,2.1343,4607.8,4606.0,3.66]
[1756301977999,2.1343,4607.8,4606.4,0.66]
[1756301978233,2.1343,4607.8,4606.2,0.66]
[1756301978743,1.691,4607.8,4606.7,0.1088]
[1756301978912,1.691,4607.8,4607.7,2.17028018]
[1756301979114,0.0192,4607.8,4607.7,2.83028018]
[1756301979331,0.0192,4607.8,4607.7,3.28878298]
[1756301979622,0.0192,4607.8,4607.7,2.83028018]
[1756301980431,0.0192,4607.8,4607.4,0.66]
[1756301980636,0.0192,4607.8,4607.7,2.17028018]
[1756301980822,0.0192,4607.8,4607.1,0.66]
[1756301981013,0.0192,4607.8,4607.1,2.83055813]
[1756301981209,0.0192,4607.8,4606.9,0.66]
[1756301981714,0.0192,4607.8,4607.0,0.66]
[1756301981926,0.0192,4607.8,4607.3,2.17046695]
[1756301982124,0.0192,4607.8,4606.9,0.66]
[1756301982436,0.0192,4607.8,4607.7,2.93908018]
[1756301982602,0.0192,4607.8,4607.7,2.96078298]
[1756301982802,0.0192,4607.8,4607.7,3.39758298]
[1756301983032,0.0192,4607.8,4607.7,2.27908018]
[1756301983234,0.0192,4607.8,4607.7,2.19198298]
[1756301983538,0.0192,4607.8,4607.7,2.85198298]
[1756301983721,0.0192,4607.8,4607.7,3.28878298]
[1756301983921,0.0192,4607.8,4607.7,2.83028018]
[1756301984700,0.0192,4607.8,4607.7,6.78884671]
[1756301984943,0.0192,4607.8,4607.7,6.87594391]
[1756301985124,0.02,4608.8,4608.7,2.16980927]
[1756301985308,0.02,4608.8,4607.7,0.1088]
[1756301985505,0.002,4607.8,4607.7,2.17028018]
[1756301986008,0.002,4607.8,4607.7,2.85198298]
[1756301986209,0.002,4607.8,4607.7,2.83028018]
[1756301987249,0.002,4607.8,4607.7,2.17028018]
[1756301987406,0.4453,4607.8,4607.5,0.1088]
[1756301987606,0.4433,4607.7,4607.5,0.1088]
[1756301987814,0.4433,4607.7,4606.8,0.02]
[1756301988016,2.17044925,4607.4,4606.8,0.02]
[1756301988222,1.67,4607.3,4606.8,0.02]
[1756301988503,4.28377621,4607.3,4606.8,0.02]
[1756301988712,2.6138211,4607.2,4606.8,0.02]
[1756301989140,2.61386282,4607.1,4606.8,0.02]
[1756301989347,2.17065705,4606.9,4606.8,0.02]
[1756301989732,9.66595705,4606.9,4606.8,0.02]
[1756301989907,2.17112833,4605.9,4605.8,0.02]
[1756301990108,3.84112833,4605.9,4605.8,0.02]
[1756301990340,8.32152833,4605.9,4605.8,0.02]
[1756301991006,11.32152833,4605.9,4605.8,0.02]
[1756301991207,11.32052833,4605.9,4605.8,0.02]
[1756301991406,7.27152833,4605.9,4605.8,0.02]
[1756301991638,11.32052833,4605.9,4605.8,0.02]
[1756301991842,11.66047443,4605.9,4605.8,0.02]
[1756301992163,3.17174783,4604.6,4600.3,0.001]
[1756301992362,3.17174783,4604.6,4597.8,2.19592302]
[1756301992363,2.17402616,4599.8,4597.8,0.021]
[1756301992655,2.17348658,4601.0,4597.8,0.021]
[1756301992656,2.17441073,4599.0,4597.8,0.021]
[1756301992820,6.99469961,4598.9,4598.8,0.02]
[1756301993023,6.98268278,4598.9,4598.8,0.02]
[1756301993249,9.1794,4598.9,4598.8,0.02]
[1756301993555,9.1954,4598.9,4598.8,0.02]
[1756301994063,9.1974,4598.9,4598.8,1e-08]
[1756301994231,5.1004,4598.9,4598.8,1e-08]
[1756301994637,7.39412705,4599.6,4598.8,1e-08]
[1756301994638,2.17422008,4599.4,4598.8,1e-08]
[1756301994949,1.671,4599.0,4598.8,1e-08]
[1756301995143,7.096,4598.9,4598.8,1e-08]
[1756301996060,0.11382728,4601.0,4598.8,0.44570001]
[1756301996228,1.671,4601.5,4598.9,0.68174433]
[1756301996429,2.1014,4601.4,4598.9,0.66]
[1756301996639,4.749,4601.3,4599.0,0.4457]
[1756301996965,3.0,4601.2,4600.3,2.17374764]
[1756301997261,3.0,4601.2,4600.1,2.17383442]
[1756301997432,3.0,4601.2,4599.9,2.17395326]
[1756301997636,2.1734012,4601.1,4599.7,2.17402709]
[1756301997834,3.0,4601.2,4599.1,0.66]
[1756301998024,3.0,4601.2,4600.0,2.17390424]
[1756301998225,7.26263217,4601.3,4600.0,2.17390424]
[1756301998424,7.26263217,4601.3,4599.3,0.66]
[1756301998670,7.26263217,4601.3,4599.9,2.17395239]
[1756301998671,2.173404,4601.1,4599.9,2.17395239]
[1756301999032,3.0,4601.2,4600.0,2.17390256]
[1756301999231,4.106,4601.1,4599.8,0.4457]
[1756301999427,4.106,4601.1,4600.0,0.66]
[1756301999653,4.106,4601.1,4599.1,0.66]
[1756301999856,3.838,4601.0,4599.3,0.66]
[1756302000282,0.339948,4599.9,4599.7,2.17401498]
[1756302000480,0.339948,4599.9,4599.8,0.66]
[1756302000643,0.339948,4599.9,4599.8,1.60651345]
[1756302000835,0.339948,4599.9,4599.7,2.17401498]
[1756302001240,0.339948,4599.9,4599.0,0.4457]
[1756302001241,2.529,4599.8,4598.0,0.4457]
[1756302001540,0.339948,4599.9,4598.9,0.4457]
[1756302001853,0.339948,4599.9,4599.3,0.66]
[1756302002072,0.339948,4599.9,4598.6,1.672]
[1756302002073,0.339948,4599.9,4599.7,0.66]
[1756302002374,0.339948,4599.9,4599.8,2.17400756]
[1756302002787,0.448748,4599.9,4599.8,2.17400756]
[1756302003083,0.02,4603.8,4601.7,0.66]
[1756302003445,2.979,4603.7,4601.7,0.66]
[1756302003777,0.02,4603.8,4601.7,0.66]
[1756302003978,0.02,4603.8,4601.4,0.1088]
[1756302003979,0.02,4603.8,4603.4,2.17229358]
[1756302004177,0.02,4603.8,4603.7,2.17216586]
[1756302004342,0.02,4603.8,4601.8,0.4457]
[1756302004659,0.02,4603.8,4602.6,2.172685]
[1756302004853,0.02,4603.8,4603.1,2.17242283]
[1756302005050,0.02,4603.8,4603.4,2.1722612]
[1756302005280,0.02,4603.8,4602.4,2.83277941]
[1756302005483,4.141,4603.8,4603.3,2.17232647]
[1756302005638,4.121,4603.7,4602.4,2.17277941]
[1756302005842,0.02,4603.8,4603.4,2.17230334]